[Event "November 21 Early 2023"]
[Site "https://www.chess.com"]
[Date "2023.11.21"]
[Round "2"]
[White "Ramla2020"]
[Black "Mishra, Manoj"]
[Result "1-0"]
[Board "223"]
[TimeControl "180+1"]
[BlackFideId "5006007"]
[WhiteElo "2468"]
[BlackElo "1847"]
[BlackTeam "IND"]
[WhiteClock "0:01:16"]
[BlackClock "0:00:00"]

1. c4 {[%clk 0:03:00]}  e6 {[%clk 0:02:59]} 2. d4 {[%clk 0:02:59]}  d5 {[%clk 0:02:58]} 3. Nf3 {[%clk 0:03:00]}  Nf6 {[%clk 0:02:53]} 4. Bg5 {[%clk 0:02:59]}  Be7 {[%clk 0:02:49]} 5. e3 {[%clk 0:02:59]}  c6 {[%clk 0:02:49]} 6. Nc3 {[%clk 0:02:59]}  a6 {[%clk 0:02:44]} 7. a4 {[%clk 0:02:57]}  Nbd7 {[%clk 0:02:42]} 8. Qc2 {[%clk 0:02:57]}  h6 {[%clk 0:02:41]} 9. Bh4 {[%clk 0:02:57]}  Bb4 {[%clk 0:02:40]} 10. Bd3 {[%clk 0:02:55]}  dxc4 {[%clk 0:02:34]} 11. Bxc4 {[%clk 0:02:55]}  Nb6 {[%clk 0:02:34]} 12. Bd3 {[%clk 0:02:50]}  Nbd5 {[%clk 0:02:32]} 13. O-O {[%clk 0:02:49]}  Bd6 {[%clk 0:02:28]} 14. e4 {[%clk 0:02:40]}  Nb4 {[%clk 0:02:26]} 15. Qe2 {[%clk 0:02:37]}  Nxd3 {[%clk 0:02:24]} 16. Qxd3 {[%clk 0:02:37]}  Be7 {[%clk 0:02:23]} 17. e5 {[%clk 0:02:34]}  Nd5 {[%clk 0:02:21]} 18. Bxe7 {[%clk 0:02:34]}  Qxe7 {[%clk 0:02:21]} 19. Ne4 {[%clk 0:02:34]}  O-O {[%clk 0:02:18]} 20. Nd6 {[%clk 0:02:31]}  b6 {[%clk 0:02:02]} 21. Rac1 {[%clk 0:02:27]}  a5 {[%clk 0:01:53]} 22. Qb3 {[%clk 0:02:12]}  Ba6 {[%clk 0:01:44]} 23. Rfe1 {[%clk 0:02:05]}  Nb4 {[%clk 0:01:42]} 24. Rc3 {[%clk 0:02:02]}  b5 {[%clk 0:01:27]} 25. Nd2 {[%clk 0:01:57]}  Rfb8 {[%clk 0:01:10]} 26. N2e4 {[%clk 0:01:51]}  Nd5 {[%clk 0:01:05]} 27. Rg3 {[%clk 0:01:50]}  bxa4 {[%clk 0:00:59]} 28. Qxa4 {[%clk 0:01:49]}  Rb4 {[%clk 0:00:56]} 29. Qxa5 {[%clk 0:01:43]}  Bb7 {[%clk 0:00:45]} 30. Qc5 {[%clk 0:01:42]}  Rxb2 {[%clk 0:00:38]} 31. h3 {[%clk 0:01:40]}  Nf4 {[%clk 0:00:32]} 32. Qc1 {[%clk 0:01:16]}  Ne2+ {[%clk 0:00:29]} 33. Rxe2 {[%clk 0:01:16]}  Rxe2 {[%clk 0:00:28]} 34. Qxh6 {[%clk 0:01:17]}  Ra1+ {[%clk 0:00:04]} 35. Kh2 {[%clk 0:01:16]}  g6 {[%clk 0:00:02]} 36. Nf6+ {[%clk 0:01:15]}  Qxf6 {[%clk 0:00:00]} 37. exf6 {[%clk 0:01:16]} 1-0

[Event "November 21 Early 2023"]
[Site "https://www.chess.com"]
[Date "2023.11.21"]
[Round "2"]
[White "Pourkashiyan, Atousa"]
[Black "missponyo10"]
[Result "1-0"]
[Board "225"]
[TimeControl "180+1"]
[WhiteFideId "12502014"]
[WhiteElo "2221"]
[BlackElo "2178"]
[WhiteTeam "USA"]
[WhiteClock "0:00:56"]
[BlackClock "0:01:17"]

1. e4 {[%clk 0:02:11]}  c5 {[%clk 0:02:59]} 2. Nf3 {[%clk 0:02:10]}  d6 {[%clk 0:02:59]} 3. d4 {[%clk 0:02:10]}  cxd4 {[%clk 0:03:00]} 4. Nxd4 {[%clk 0:02:10]}  Nf6 {[%clk 0:03:01]} 5. Nc3 {[%clk 0:02:10]}  a6 {[%clk 0:03:02]} 6. Bc4 {[%clk 0:02:10]}  e6 {[%clk 0:03:01]} 7. O-O {[%clk 0:02:09]}  Be7 {[%clk 0:03:02]} 8. Bb3 {[%clk 0:02:09]}  O-O {[%clk 0:03:02]} 9. Be3 {[%clk 0:02:07]}  Nbd7 {[%clk 0:03:01]} 10. Bxe6 {[%clk 0:02:03]}  fxe6 {[%clk 0:02:58]} 11. Nxe6 {[%clk 0:02:04]}  Qa5 {[%clk 0:02:58]} 12. Nxf8 {[%clk 0:02:04]}  Nxf8 {[%clk 0:02:58]} 13. Nd5 {[%clk 0:02:01]}  Nxd5 {[%clk 0:02:52]} 14. exd5 {[%clk 0:02:02]}  Bf5 {[%clk 0:02:49]} 15. c4 {[%clk 0:01:54]}  Rc8 {[%clk 0:02:45]} 16. b3 {[%clk 0:01:51]}  Bf6 {[%clk 0:02:43]} 17. Bd4 {[%clk 0:01:51]}  Bxd4 {[%clk 0:02:36]} 18. Qxd4 {[%clk 0:01:52]}  Ng6 {[%clk 0:02:37]} 19. Rae1 {[%clk 0:01:35]}  Qd8 {[%clk 0:02:34]} 20. Re3 {[%clk 0:01:29]}  Qg5 {[%clk 0:02:27]} 21. Rg3 {[%clk 0:01:27]}  Qh6 {[%clk 0:02:18]} 22. Re1 {[%clk 0:01:23]}  Nf4 {[%clk 0:02:15]} 23. Rxg7+ {[%clk 0:01:13]}  Qxg7 {[%clk 0:02:12]} 24. Qxf4 {[%clk 0:01:14]}  Rf8 {[%clk 0:02:06]} 25. Qxd6 {[%clk 0:01:13]}  Be4 {[%clk 0:02:03]} 26. Qg3 {[%clk 0:01:08]}  Bg6 {[%clk 0:01:57]} 27. d6 {[%clk 0:01:04]}  Kh8 {[%clk 0:01:52]} 28. h3 {[%clk 0:01:00]}  Rg8 {[%clk 0:01:43]} 29. c5 {[%clk 0:00:56]}  Qb2 {[%clk 0:01:33]} 30. Qe5+ {[%clk 0:00:55]}  Qxe5 {[%clk 0:01:33]} 31. Rxe5 {[%clk 0:00:56]}  Rd8 {[%clk 0:01:30]} 32. Re7 {[%clk 0:00:55]}  b6 {[%clk 0:01:26]} 33. cxb6 {[%clk 0:00:55]}  Rxd6 {[%clk 0:01:25]} 34. b7 {[%clk 0:00:56]}  Rb6 {[%clk 0:01:22]} 35. Rc7 {[%clk 0:00:56]}  Bf5 {[%clk 0:01:22]} 36. Rc8+ {[%clk 0:00:55]}  Kg7 {[%clk 0:01:21]} 37. b8=Q {[%clk 0:00:55]}  Rxb8 {[%clk 0:01:17]} 38. Rxb8 {[%clk 0:00:56]} 1-0

[Event "November 21 Early 2023"]
[Site "https://www.chess.com"]
[Date "2023.11.21"]
[Round "2"]
[White "Shishkov, Andrei"]
[Black "Nechitaylo_Nikita"]
[Result "1/2-1/2"]
[Board "227"]
[TimeControl "180+1"]
[WhiteFideId "4500563"]
[WhiteElo "2241"]
[BlackElo "2174"]
[WhiteTeam "EST"]
[WhiteClock "0:00:05"]
[BlackClock "0:00:05"]

1. d4 {[%clk 0:03:00]}  Nf6 {[%clk 0:02:59]} 2. c4 {[%clk 0:02:58]}  e6 {[%clk 0:02:59]} 3. Nc3 {[%clk 0:02:58]}  Bb4 {[%clk 0:03:00]} 4. Qc2 {[%clk 0:02:57]}  O-O {[%clk 0:02:59]} 5. e4 {[%clk 0:02:56]}  d5 {[%clk 0:02:58]} 6. e5 {[%clk 0:02:55]}  Ne4 {[%clk 0:02:59]} 7. Bd3 {[%clk 0:02:56]}  c5 {[%clk 0:02:50]} 8. Nf3 {[%clk 0:02:56]}  Nc6 {[%clk 0:02:40]} 9. O-O {[%clk 0:02:55]}  cxd4 {[%clk 0:02:05]} 10. Nxe4 {[%clk 0:02:37]}  dxe4 {[%clk 0:02:05]} 11. Bxe4 {[%clk 0:02:38]}  h6 {[%clk 0:02:05]} 12. a3 {[%clk 0:02:38]}  Ba5 {[%clk 0:02:00]} 13. b4 {[%clk 0:02:36]}  Bc7 {[%clk 0:02:00]} 14. Bf4 {[%clk 0:02:22]}  f5 {[%clk 0:01:44]} 15. Bxc6 {[%clk 0:01:58]}  bxc6 {[%clk 0:01:44]} 16. Rad1 {[%clk 0:01:58]}  Bb7 {[%clk 0:01:39]} 17. Rxd4 {[%clk 0:01:29]}  Qe7 {[%clk 0:01:39]} 18. c5 {[%clk 0:01:25]}  g5 {[%clk 0:01:39]} 19. Rfd1 {[%clk 0:00:52]}  Rad8 {[%clk 0:01:21]} 20. Bc1 {[%clk 0:00:41]}  g4 {[%clk 0:01:05]} 21. Rxd8 {[%clk 0:00:19]}  Rxd8 {[%clk 0:01:03]} 22. Ne1 {[%clk 0:00:15]}  Bxe5 {[%clk 0:00:58]} 23. Bxh6 {[%clk 0:00:15]}  Rxd1 {[%clk 0:00:35]} 24. Qxd1 {[%clk 0:00:16]}  Qh4 {[%clk 0:00:35]} 25. g3 {[%clk 0:00:16]}  Qxh6 {[%clk 0:00:35]} 26. Qd7 {[%clk 0:00:15]}  Qf8 {[%clk 0:00:36]} 27. Qxb7 {[%clk 0:00:14]}  Qe8 {[%clk 0:00:22]} 28. Qxa7 {[%clk 0:00:13]}  Qd8 {[%clk 0:00:22]} 29. Kf1 {[%clk 0:00:12]}  Bc3 {[%clk 0:00:21]} 30. Qa6 {[%clk 0:00:09]}  Kf7 {[%clk 0:00:09]} 31. Qe2 {[%clk 0:00:09]}  Qd5 {[%clk 0:00:07]} 32. Kg1 {[%clk 0:00:06]}  Qb3 {[%clk 0:00:04]} 33. Nd3 {[%clk 0:00:05]}  Bd4 {[%clk 0:00:03]} 34. Nf4 {[%clk 0:00:05]}  e5 {[%clk 0:00:02]} 35. Nd3 {[%clk 0:00:03]}  e4 {[%clk 0:00:02]} 36. Nf4 {[%clk 0:00:03]}  Qb1+ {[%clk 0:00:01]} 37. Kg2 {[%clk 0:00:04]}  Qb3 {[%clk 0:00:02]} 38. Qd2 {[%clk 0:00:04]}  Be5 {[%clk 0:00:03]} 39. Qd7+ {[%clk 0:00:03]}  Kf6 {[%clk 0:00:03]} 40. Qxc6+ {[%clk 0:00:04]}  Kg5 {[%clk 0:00:04]} 41. Qe8 {[%clk 0:00:04]}  Bxf4 {[%clk 0:00:03]} 42. gxf4+ {[%clk 0:00:05]}  Kxf4 {[%clk 0:00:04]} 43. Qb8+ {[%clk 0:00:04]}  Kg5 {[%clk 0:00:04]} 44. Qg8+ {[%clk 0:00:05]}  Kf4 {[%clk 0:00:04]} 45. Qb8+ {[%clk 0:00:05]}  Kg5 {[%clk 0:00:05]} 46. Qg8+ {[%clk 0:00:05]}  Kf4 {[%clk 0:00:05]} 47. Qb8+ {[%clk 0:00:05]} 1/2-1/2

[Event "November 21 Early 2023"]
[Site "https://www.chess.com"]
[Date "2023.11.21"]
[Round "2"]
[White "seasidesunset"]
[Black "Begunov, Konstantin"]
[Result "1-0"]
[Board "228"]
[TimeControl "180+1"]
[BlackFideId "4118510"]
[WhiteElo "2161"]
[BlackElo "1989"]
[BlackTeam "RUS"]
[WhiteClock "0:01:09"]
[BlackClock "0:01:37"]

1. c4 {[%clk 0:02:58]}  c6 {[%clk 0:03:00]} 2. Qa4 {[%clk 0:02:56]}  e5 {[%clk 0:02:56]} 3. Nc3 {[%clk 0:02:46]}  f5 {[%clk 0:02:55]} 4. g3 {[%clk 0:02:45]}  Nf6 {[%clk 0:02:54]} 5. Bg2 {[%clk 0:02:46]}  d6 {[%clk 0:02:46]} 6. e3 {[%clk 0:02:45]}  Be6 {[%clk 0:02:46]} 7. Nge2 {[%clk 0:02:44]}  Nbd7 {[%clk 0:02:46]} 8. d4 {[%clk 0:02:44]}  Nb6 {[%clk 0:02:44]} 9. Qc2 {[%clk 0:02:10]}  Nxc4 {[%clk 0:02:41]} 10. O-O {[%clk 0:01:59]}  Be7 {[%clk 0:02:31]} 11. b3 {[%clk 0:01:54]}  Nb6 {[%clk 0:02:29]} 12. Bb2 {[%clk 0:01:53]}  e4 {[%clk 0:02:21]} 13. Nf4 {[%clk 0:01:52]}  Bf7 {[%clk 0:02:22]} 14. Rad1 {[%clk 0:01:46]}  O-O {[%clk 0:02:20]} 15. d5 {[%clk 0:01:45]}  Nbxd5 {[%clk 0:02:15]} 16. Nfxd5 {[%clk 0:01:45]}  Nxd5 {[%clk 0:02:15]} 17. Nxd5 {[%clk 0:01:40]}  Bxd5 {[%clk 0:02:15]} 18. Rxd5 {[%clk 0:01:21]}  cxd5 {[%clk 0:02:15]} 19. Qd2 {[%clk 0:01:21]}  Bf6 {[%clk 0:02:02]} 20. Qxd5+ {[%clk 0:01:21]}  Kh8 {[%clk 0:02:02]} 21. Ba3 {[%clk 0:01:21]}  Be5 {[%clk 0:02:00]} 22. Bh3 {[%clk 0:01:21]}  Qa5 {[%clk 0:01:55]} 23. Qxa5 {[%clk 0:01:19]}  b6 {[%clk 0:01:54]} 24. Qd5 {[%clk 0:01:19]}  Rac8 {[%clk 0:01:52]} 25. Rc1 {[%clk 0:01:16]}  Rxc1+ {[%clk 0:01:47]} 26. Bxc1 {[%clk 0:01:17]}  g6 {[%clk 0:01:48]} 27. Ba3 {[%clk 0:01:14]}  Rf6 {[%clk 0:01:47]} 28. Bf1 {[%clk 0:01:09]}  Kg7 {[%clk 0:01:47]} 29. Bc4 {[%clk 0:01:09]}  a6 {[%clk 0:01:44]} 30. Bxa6 {[%clk 0:01:09]}  Rf7 {[%clk 0:01:43]} 31. Bc4 {[%clk 0:01:09]}  Rc7 {[%clk 0:01:37]} 32. Bxd6 {[%clk 0:01:09]} 1-0

[Event "November 21 Early 2023"]
[Site "https://www.chess.com"]
[Date "2023.11.21"]
[Round "2"]
[White "Kopczynski, Michal"]
[Black "Hartikainen, Jarmo"]
[Result "1-0"]
[Board "229"]
[TimeControl "180+1"]
[WhiteFideId "1124200"]
[BlackFideId "503134"]
[WhiteElo "2174"]
[BlackElo "2148"]
[WhiteTeam "POL"]
[BlackTeam "FIN"]
[WhiteClock "0:01:59"]
[BlackClock "0:00:03"]

1. e4 {[%clk 0:03:00]}  c5 {[%clk 0:02:59]} 2. d4 {[%clk 0:03:01]}  cxd4 {[%clk 0:02:59]} 3. c3 {[%clk 0:03:02]}  d5 {[%clk 0:02:59]} 4. exd5 {[%clk 0:03:02]}  Qxd5 {[%clk 0:02:59]} 5. cxd4 {[%clk 0:03:03]}  Nc6 {[%clk 0:02:59]} 6. Nf3 {[%clk 0:03:03]}  Bg4 {[%clk 0:02:59]} 7. Be2 {[%clk 0:03:04]}  e6 {[%clk 0:02:59]} 8. Nc3 {[%clk 0:03:05]}  Qa5 {[%clk 0:02:59]} 9. O-O {[%clk 0:03:05]}  Nf6 {[%clk 0:02:59]} 10. h3 {[%clk 0:03:05]}  Bh5 {[%clk 0:02:59]} 11. Be3 {[%clk 0:03:03]}  Be7 {[%clk 0:02:59]} 12. Qb3 {[%clk 0:03:03]}  Qb4 {[%clk 0:02:58]} 13. Qxb4 {[%clk 0:03:00]}  Nxb4 {[%clk 0:02:58]} 14. Bb5+ {[%clk 0:03:00]}  Kd8 {[%clk 0:02:40]} 15. Ne5 {[%clk 0:02:58]}  a6 {[%clk 0:02:36]} 16. Ba4 {[%clk 0:02:57]}  Nbd5 {[%clk 0:01:54]} 17. Rac1 {[%clk 0:02:51]}  Rc8 {[%clk 0:01:45]} 18. g4 {[%clk 0:02:43]}  Bg6 {[%clk 0:01:43]} 19. h4 {[%clk 0:02:42]}  h6 {[%clk 0:01:21]} 20. h5 {[%clk 0:02:41]}  Nxc3 {[%clk 0:01:09]} 21. Rxc3 {[%clk 0:02:34]}  Rxc3 {[%clk 0:01:06]} 22. bxc3 {[%clk 0:02:35]}  Bxh5 {[%clk 0:00:32]} 23. gxh5 {[%clk 0:02:34]}  Kc8 {[%clk 0:00:25]} 24. Nxf7 {[%clk 0:02:34]}  Rf8 {[%clk 0:00:24]} 25. Ne5 {[%clk 0:02:32]}  Nxh5 {[%clk 0:00:23]} 26. Bd1 {[%clk 0:02:27]}  Nf4 {[%clk 0:00:22]} 27. Bg4 {[%clk 0:02:25]}  Kc7 {[%clk 0:00:15]} 28. Rb1 {[%clk 0:02:22]}  Kd8 {[%clk 0:00:10]} 29. Rxb7 {[%clk 0:02:20]}  h5 {[%clk 0:00:06]} 30. Bxf4 {[%clk 0:02:05]}  hxg4 {[%clk 0:00:03]} 31. Nc6+ {[%clk 0:01:59]} 1-0

[Event "November 21 Early 2023"]
[Site "https://www.chess.com"]
[Date "2023.11.21"]
[Round "2"]
[White "DonCiao"]
[Black "Kassimov, Baurzhan"]
[Result "0-1"]
[Board "236"]
[TimeControl "180+1"]
[BlackFideId "13704800"]
[WhiteElo "2127"]
[BlackElo "2220"]
[BlackTeam "KAZ"]
[WhiteClock "0:00:00"]
[BlackClock "0:00:13"]

1. c4 {[%clk 0:03:00]}  Nf6 {[%clk 0:02:55]} 2. g3 {[%clk 0:03:00]}  g6 {[%clk 0:02:55]} 3. Bg2 {[%clk 0:03:00]}  Bg7 {[%clk 0:02:54]} 4. Nc3 {[%clk 0:03:01]}  O-O {[%clk 0:02:54]} 5. e4 {[%clk 0:03:01]}  d6 {[%clk 0:02:48]} 6. Nge2 {[%clk 0:03:01]}  c5 {[%clk 0:02:38]} 7. O-O {[%clk 0:02:59]}  Nc6 {[%clk 0:02:38]} 8. d3 {[%clk 0:02:59]}  Ne8 {[%clk 0:02:25]} 9. Be3 {[%clk 0:02:57]}  Nc7 {[%clk 0:02:24]} 10. d4 {[%clk 0:02:57]}  b6 {[%clk 0:02:13]} 11. e5 {[%clk 0:02:27]}  Bb7 {[%clk 0:01:49]} 12. exd6 {[%clk 0:02:03]}  exd6 {[%clk 0:01:47]} 13. d5 {[%clk 0:02:02]}  Ne5 {[%clk 0:01:42]} 14. b3 {[%clk 0:01:59]}  a6 {[%clk 0:01:38]} 15. a4 {[%clk 0:01:55]}  Re8 {[%clk 0:01:24]} 16. h3 {[%clk 0:01:54]}  h6 {[%clk 0:01:09]} 17. Qd2 {[%clk 0:01:54]}  Kh7 {[%clk 0:01:09]} 18. Kh2 {[%clk 0:01:43]}  Qf6 {[%clk 0:01:05]} 19. Ne4 {[%clk 0:01:34]}  Nf3+ {[%clk 0:01:03]} 20. Bxf3 {[%clk 0:01:18]}  Qxf3 {[%clk 0:01:03]} 21. N4c3 {[%clk 0:01:12]}  b5 {[%clk 0:00:57]} 22. axb5 {[%clk 0:01:10]}  axb5 {[%clk 0:00:57]} 23. Rxa8 {[%clk 0:01:09]}  Rxa8 {[%clk 0:00:44]} 24. Ng1 {[%clk 0:00:51]}  Qf6 {[%clk 0:00:43]} 25. Ne4 {[%clk 0:00:49]}  Qe7 {[%clk 0:00:38]} 26. Qc2 {[%clk 0:00:39]}  bxc4 {[%clk 0:00:28]} 27. bxc4 {[%clk 0:00:39]}  Nxd5 {[%clk 0:00:28]} 28. cxd5 {[%clk 0:00:35]}  Bxd5 {[%clk 0:00:29]} 29. Nd2 {[%clk 0:00:33]}  Ra2 {[%clk 0:00:23]} 30. Qd3 {[%clk 0:00:31]}  Bc6 {[%clk 0:00:23]} 31. Nb3 {[%clk 0:00:21]}  Qe6 {[%clk 0:00:18]} 32. Nc1 {[%clk 0:00:10]}  c4 {[%clk 0:00:16]} 33. Qd1 {[%clk 0:00:08]}  Qe4 {[%clk 0:00:13]} 34. Nf3 {[%clk 0:00:00]}  Rb2 {[%clk 0:00:13]} 0-1

[Event "November 21 Early 2023"]
[Site "https://www.chess.com"]
[Date "2023.11.21"]
[Round "2"]
[White "Rosenberg, Evan S"]
[Black "Fernandez Hernandez, Gerardo"]
[Result "1-0"]
[Board "237"]
[TimeControl "180+1"]
[WhiteFideId "2019299"]
[BlackFideId "2207400"]
[WhiteElo "2445"]
[BlackElo "2124"]
[WhiteTeam "USA"]
[BlackTeam "ESP"]
[WhiteClock "0:00:40"]
[BlackClock "0:00:18"]

1. d4 {[%clk 0:03:00]}  Nf6 {[%clk 0:02:59]} 2. Nf3 {[%clk 0:03:01]}  g6 {[%clk 0:02:59]} 3. Nc3 {[%clk 0:03:01]}  d5 {[%clk 0:02:58]} 4. Bf4 {[%clk 0:03:01]}  a6 {[%clk 0:02:51]} 5. Qd2 {[%clk 0:03:00]}  c5 {[%clk 0:02:49]} 6. dxc5 {[%clk 0:02:39]}  Qa5 {[%clk 0:02:30]} 7. O-O-O {[%clk 0:02:32]}  e6 {[%clk 0:02:08]} 8. Bd6 {[%clk 0:02:31]}  Nbd7 {[%clk 0:02:00]} 9. Qd4 {[%clk 0:02:16]}  Bg7 {[%clk 0:01:44]} 10. Kb1 {[%clk 0:01:47]}  Rg8 {[%clk 0:01:36]} 11. Qa4 {[%clk 0:01:37]}  Qxa4 {[%clk 0:01:31]} 12. Nxa4 {[%clk 0:01:37]}  Ne4 {[%clk 0:01:31]} 13. Bg3 {[%clk 0:01:29]}  Ndxc5 {[%clk 0:01:24]} 14. Nxc5 {[%clk 0:01:30]}  Nxc5 {[%clk 0:01:24]} 15. e3 {[%clk 0:01:31]}  Ne4 {[%clk 0:01:19]} 16. Bd3 {[%clk 0:01:30]}  Nxg3 {[%clk 0:01:19]} 17. hxg3 {[%clk 0:01:30]}  h5 {[%clk 0:01:20]} 18. e4 {[%clk 0:01:29]}  Bd7 {[%clk 0:01:13]} 19. exd5 {[%clk 0:01:30]}  exd5 {[%clk 0:01:14]} 20. Rhe1+ {[%clk 0:01:30]}  Kd8 {[%clk 0:01:14]} 21. c3 {[%clk 0:01:28]}  Re8 {[%clk 0:01:11]} 22. Rxe8+ {[%clk 0:01:27]}  Kxe8 {[%clk 0:01:11]} 23. Re1+ {[%clk 0:01:27]}  Kf8 {[%clk 0:01:11]} 24. Ne5 {[%clk 0:01:26]}  Be6 {[%clk 0:01:00]} 25. Nxg6+ {[%clk 0:01:24]}  fxg6 {[%clk 0:00:55]} 26. Rxe6 {[%clk 0:01:23]}  g5 {[%clk 0:00:54]} 27. Rd6 {[%clk 0:01:14]}  Re8 {[%clk 0:00:49]} 28. Rxd5 {[%clk 0:01:12]}  Re1+ {[%clk 0:00:49]} 29. Kc2 {[%clk 0:01:12]}  Bf6 {[%clk 0:00:44]} 30. Rd7 {[%clk 0:01:02]}  Re7 {[%clk 0:00:42]} 31. Rxe7 {[%clk 0:00:53]}  Kxe7 {[%clk 0:00:43]} 32. a4 {[%clk 0:00:48]}  a5 {[%clk 0:00:39]} 33. b4 {[%clk 0:00:46]}  axb4 {[%clk 0:00:36]} 34. cxb4 {[%clk 0:00:47]}  Kd6 {[%clk 0:00:37]} 35. Be4 {[%clk 0:00:46]}  b6 {[%clk 0:00:37]} 36. a5 {[%clk 0:00:44]}  bxa5 {[%clk 0:00:38]} 37. bxa5 {[%clk 0:00:45]}  Kc5 {[%clk 0:00:29]} 38. a6 {[%clk 0:00:44]}  Kb6 {[%clk 0:00:29]} 39. Bb7 {[%clk 0:00:44]}  Bd4 {[%clk 0:00:29]} 40. f3 {[%clk 0:00:44]}  Bf2 {[%clk 0:00:29]} 41. g4 {[%clk 0:00:44]}  hxg4 {[%clk 0:00:29]} 42. fxg4 {[%clk 0:00:44]}  Be3 {[%clk 0:00:28]} 43. Kd3 {[%clk 0:00:44]}  Bf4 {[%clk 0:00:27]} 44. Ke4 {[%clk 0:00:44]}  Bc1 {[%clk 0:00:28]} 45. Kf5 {[%clk 0:00:44]}  Bd2 {[%clk 0:00:28]} 46. Ke6 {[%clk 0:00:43]}  Bc1 {[%clk 0:00:27]} 47. Kd7 {[%clk 0:00:43]}  Ka7 {[%clk 0:00:28]} 48. Kc6 {[%clk 0:00:41]}  Bd2 {[%clk 0:00:29]} 49. Kb5 {[%clk 0:00:41]}  Bc1 {[%clk 0:00:29]} 50. Bc8 {[%clk 0:00:40]}  Bd2 {[%clk 0:00:30]} 51. Kc6 {[%clk 0:00:39]}  Bc1 {[%clk 0:00:31]} 52. Kd7 {[%clk 0:00:39]}  Be3 {[%clk 0:00:32]} 53. Bb7 {[%clk 0:00:39]}  Bc1 {[%clk 0:00:33]} 54. Ke6 {[%clk 0:00:39]}  Bd2 {[%clk 0:00:34]} 55. Ke5 {[%clk 0:00:40]}  Bc1 {[%clk 0:00:35]} 56. Ke4 {[%clk 0:00:41]}  Bd2 {[%clk 0:00:36]} 57. Kf3 {[%clk 0:00:40]}  Bc1 {[%clk 0:00:37]} 58. g3 {[%clk 0:00:40]}  Bf4 {[%clk 0:00:18]} 59. gxf4 {[%clk 0:00:40]} 1-0

[Event "November 21 Early 2023"]
[Site "https://www.chess.com"]
[Date "2023.11.21"]
[Round "2"]
[White "Nikulina, Alena"]
[Black "Astafurov, Arseniy"]
[Result "0-1"]
[Board "241"]
[TimeControl "180+1"]
[WhiteFideId "4172051"]
[BlackFideId "24175218"]
[WhiteElo "1627"]
[BlackElo "2170"]
[WhiteTeam "RUS"]
[BlackTeam "RUS"]
[WhiteClock "0:00:09"]
[BlackClock "0:00:54"]

1. e4 {[%clk 0:02:58]}  e6 {[%clk 0:02:59]} 2. d4 {[%clk 0:02:57]}  d5 {[%clk 0:03:00]} 3. exd5 {[%clk 0:02:56]}  exd5 {[%clk 0:03:01]} 4. c4 {[%clk 0:02:55]}  Nf6 {[%clk 0:03:00]} 5. Nc3 {[%clk 0:02:54]}  Bb4 {[%clk 0:03:01]} 6. Nf3 {[%clk 0:02:54]}  O-O {[%clk 0:03:00]} 7. Bd3 {[%clk 0:02:54]}  dxc4 {[%clk 0:03:00]} 8. Bxc4 {[%clk 0:02:54]}  Nbd7 {[%clk 0:02:49]} 9. O-O {[%clk 0:02:53]}  Nb6 {[%clk 0:02:50]} 10. Bb3 {[%clk 0:02:53]}  Bg4 {[%clk 0:02:50]} 11. Bg5 {[%clk 0:02:40]}  c6 {[%clk 0:02:44]} 12. a3 {[%clk 0:02:33]}  Be7 {[%clk 0:02:43]} 13. Be3 {[%clk 0:02:26]}  Nfd5 {[%clk 0:02:42]} 14. h3 {[%clk 0:02:24]}  Bh5 {[%clk 0:02:41]} 15. g4 {[%clk 0:02:23]}  Bg6 {[%clk 0:02:42]} 16. Ne5 {[%clk 0:02:23]}  Nxc3 {[%clk 0:02:35]} 17. bxc3 {[%clk 0:02:23]}  Nd5 {[%clk 0:02:35]} 18. Qd2 {[%clk 0:02:13]}  Qa5 {[%clk 0:02:22]} 19. c4 {[%clk 0:01:56]}  Qxd2 {[%clk 0:02:22]} 20. Bxd2 {[%clk 0:01:55]}  Nf6 {[%clk 0:02:20]} 21. Bb4 {[%clk 0:01:45]}  Bxb4 {[%clk 0:02:13]} 22. axb4 {[%clk 0:01:45]}  Rfd8 {[%clk 0:02:13]} 23. Rfd1 {[%clk 0:01:40]}  a6 {[%clk 0:02:13]} 24. f4 {[%clk 0:01:34]}  Be4 {[%clk 0:02:13]} 25. Kf2 {[%clk 0:01:30]}  h5 {[%clk 0:02:10]} 26. g5 {[%clk 0:01:30]}  Ne8 {[%clk 0:02:09]} 27. Ke3 {[%clk 0:01:24]}  Bf5 {[%clk 0:02:00]} 28. d5 {[%clk 0:01:18]}  cxd5 {[%clk 0:01:53]} 29. cxd5 {[%clk 0:01:15]}  Rac8 {[%clk 0:01:53]} 30. Rac1 {[%clk 0:01:09]}  Nd6 {[%clk 0:01:52]} 31. h4 {[%clk 0:01:05]}  Bg4 {[%clk 0:01:47]} 32. Nxg4 {[%clk 0:00:45]}  hxg4 {[%clk 0:01:48]} 33. Kd2 {[%clk 0:00:28]}  Kf8 {[%clk 0:01:34]} 34. Rxc8 {[%clk 0:00:20]}  Rxc8 {[%clk 0:01:34]} 35. Rg1 {[%clk 0:00:17]}  g3 {[%clk 0:01:28]} 36. Kd3 {[%clk 0:00:15]}  Nf5 {[%clk 0:01:26]} 37. Ke4 {[%clk 0:00:11]}  g6 {[%clk 0:00:56]} 38. h5 {[%clk 0:00:11]}  Rc3 {[%clk 0:00:56]} 39. hxg6 {[%clk 0:00:09]}  fxg6 {[%clk 0:00:56]} 40. Bd1 {[%clk 0:00:09]}  Re3# {[%clk 0:00:54]} 0-1

[Event "November 21 Early 2023"]
[Site "https://www.chess.com"]
[Date "2023.11.21"]
[Round "2"]
[White "Zoete, Roelant"]
[Black "Mirza, Diana"]
[Result "1-0"]
[Board "245"]
[TimeControl "180+1"]
[WhiteFideId "40103269"]
[BlackFideId "2503999"]
[WhiteElo "2437"]
[BlackElo "1813"]
[WhiteTeam "NED"]
[BlackTeam "IRL"]
[WhiteClock "0:01:11"]
[BlackClock "0:01:52"]

1. e4 {[%clk 0:03:00]}  c5 {[%clk 0:02:54]} 2. Nf3 {[%clk 0:03:00]}  e6 {[%clk 0:02:50]} 3. d4 {[%clk 0:03:01]}  cxd4 {[%clk 0:02:51]} 4. Nxd4 {[%clk 0:03:01]}  a6 {[%clk 0:02:51]} 5. Nc3 {[%clk 0:03:01]}  Qc7 {[%clk 0:02:51]} 6. Be3 {[%clk 0:02:50]}  Nf6 {[%clk 0:02:49]} 7. f3 {[%clk 0:02:45]}  Bb4 {[%clk 0:02:48]} 8. Bd2 {[%clk 0:02:38]}  O-O {[%clk 0:02:47]} 9. a3 {[%clk 0:02:38]}  Be7 {[%clk 0:02:46]} 10. Be2 {[%clk 0:02:29]}  Nc6 {[%clk 0:02:46]} 11. Be3 {[%clk 0:02:25]}  d5 {[%clk 0:02:45]} 12. exd5 {[%clk 0:02:19]}  Nxd5 {[%clk 0:02:43]} 13. Nxd5 {[%clk 0:02:19]}  exd5 {[%clk 0:02:44]} 14. O-O {[%clk 0:02:18]}  Ne5 {[%clk 0:02:42]} 15. f4 {[%clk 0:02:08]}  Nc4 {[%clk 0:02:40]} 16. Bc1 {[%clk 0:02:02]}  Bc5 {[%clk 0:02:36]} 17. b3 {[%clk 0:01:57]}  Qb6 {[%clk 0:02:32]} 18. c3 {[%clk 0:01:37]}  Nd6 {[%clk 0:02:26]} 19. Kh1 {[%clk 0:01:36]}  Nf5 {[%clk 0:02:23]} 20. Nxf5 {[%clk 0:01:32]}  Bxf5 {[%clk 0:02:24]} 21. Qxd5 {[%clk 0:01:32]}  Be6 {[%clk 0:02:23]} 22. Qg5 {[%clk 0:01:27]}  Qxb3 {[%clk 0:02:18]} 23. Qxc5 {[%clk 0:01:25]}  Rac8 {[%clk 0:02:16]} 24. Qe5 {[%clk 0:01:19]}  Qxc3 {[%clk 0:01:52]} 25. Bb2 {[%clk 0:01:11]} 1-0